bitfinex/quotes_ETHUSD_20241003
["timestamp","ask_amount","ask_price","bid_price","bid_amount"]
[1727942877982,3.38003,2366.9,2366.3,4.65964198]
[1727942878181,3.38009,2366.8,2366.3,1.27896198]
[1727942878517,3.38009,2366.8,2366.3,0.816]
[1727942878814,3.38023,2366.7,2366.3,0.816]
[1727942879527,3.38009,2366.8,2366.3,4.19673]
[1727942882237,3.38081,2366.3,2365.8,0.638159]
[1727942882812,6.76171,2366.3,2365.8,0.638159]
[1727942883484,3.38067,2366.4,2365.9,0.8210269]
[1727942883688,3.0,2366.8,2365.9,4.2023869]
[1727942883889,3.38052,2366.5,2366.2,0.761]
[1727942885802,6.76113,2366.5,2366.2,0.761]
[1727942886127,3.38052,2366.5,2366.2,0.761]
[1727942886626,6.76113,2366.5,2366.2,0.761]
[1727942886833,3.38052,2366.5,2366.2,0.761]
[1727942888104,6.76111,2366.5,2366.2,0.761]
[1727942888316,3.38052,2366.5,2366.2,0.761]
[1727942888922,3.38072,2366.4,2366.2,0.761]
[1727942889596,3.38031,2366.7,2366.2,0.761]
[1727942889797,3.38031,2366.7,2366.2,4.556143]
[1727942890142,3.38017,2366.8,2366.3,3.38073]
[1727942890492,3.38017,2366.8,2366.2,4.556043]
[1727942890493,0.85337041,2367.1,2366.2,1.175223]
[1727942890793,0.85337041,2367.1,2365.6,3.94673824]
[1727942890794,3.38096,2366.2,2365.9,0.7539]
[1727942890989,3.38109,2366.1,2365.9,0.7539]
[1727942891795,3.38096,2366.2,2365.9,0.7539]
[1727942892105,3.38123,2366.0,2365.5,0.7896]
[1727942892289,6.7621,2366.2,2365.6,3.38173]
[1727942892489,3.38116,2366.1,2365.6,3.38173]
[1727942892715,3.38116,2366.1,2365.6,4.1708819]
[1727942893619,3.38125,2366.0,2365.6,4.1708819]
[1727942893820,3.38104,2366.2,2365.7,3.38162]
[1727942894194,3.38104,2366.2,2365.8,3.38148]
[1727942894394,3.38075,2366.4,2365.9,4.16649]
[1727942894594,6.76152,2366.4,2365.9,4.16649]
[1727942894863,3.38084,2366.3,2365.9,0.7852]
[1727942895067,3.38096,2366.2,2365.9,0.7852]
[1727942895459,0.85337041,2366.7,2365.4,3.0]
[1727942895460,3.38136,2366.0,2365.7,0.7852]
[1727942895766,3.38148,2365.9,2365.7,0.7852]
[1727942895969,6.76272,2366.0,2365.7,0.7852]
[1727942896491,3.3814,2365.9,2365.7,0.7852]
[1727942896630,3.85337041,2366.4,2365.7,0.7852]
[1727942896631,3.38109,2366.1,2365.7,0.7852]
[1727942896826,3.38104,2366.2,2365.7,0.7852]
[1727942897032,6.76259,2366.0,2365.7,0.7852]
[1727942897340,3.38125,2366.0,2365.7,0.7852]
[1727942897530,3.38146,2365.9,2365.7,0.7852]
[1727942897734,7.23404041,2366.4,2365.1,3.46544578]
[1727942897735,3.38159,2365.8,2365.4,0.7852]
[1727942897935,3.38174,2365.7,2365.4,0.7852]
[1727942898336,3.38159,2365.8,2365.4,0.7852]
[1727942898986,3.38167,2365.7,2365.4,0.7852]
[1727942899334,3.38159,2365.8,2365.4,1.26660446]
[1727942900472,6.76322,2365.8,2365.4,1.26660446]
[1727942900673,3.38159,2365.8,2365.4,1.26660446]
[1727942901033,3.38159,2365.8,2365.4,0.7852]
[1727942901348,3.38159,2365.8,2365.2,4.02878458]
[1727942901349,3.38173,2365.7,2365.2,4.02878458]
[1727942901533,3.38049757,2365.8,2365.2,7.41102458]
[1727942901932,6.76214757,2365.8,2365.2,4.02878458]
[1727942902158,3.38049757,2365.8,2365.3,0.48143846]
[1727942902375,6.76210757,2365.8,2365.3,0.48143846]
[1727942902580,3.38049757,2365.8,2365.3,0.48143846]
[1727942902748,3.38205,2365.5,2365.1,0.7856]
[1727942902958,3.38205,2365.5,2364.8,3.38291]
[1727942902959,3.3824,2365.2,2364.8,0.7556]
[1727942903259,3.3824,2365.2,2364.2,5.22918718]
[1727942903260,3.38302,2364.8,2364.5,0.7636]
[1727942903444,3.38316,2364.7,2364.2,4.14732]
[1727942904033,3.38316,2364.7,2364.2,0.7636]
[1727942904471,3.38316,2364.7,2364.2,4.1474]
[1727942904980,3.38316,2364.7,2364.2,0.7636]
[1727942905184,3.38325,2364.6,2364.2,0.7636]
[1727942905384,3.38338,2364.5,2364.2,0.7636]
[1727942905685,3.38338,2364.5,2363.8,3.38428]
[1727942905686,3.38338,2364.5,2363.9,4.17844]
[1727942905850,3.38338,2364.5,2364.0,3.38409]
[1727942906180,3.38316,2364.7,2364.0,3.38409]
[1727942906346,3.3834,2364.5,2363.9,1.550572]
[1727942906546,3.3834,2364.5,2363.9,0.7943]
[1727942906753,3.38346,2364.5,2363.9,0.7943]
[1727942906975,3.38356,2364.4,2363.9,0.7943]
[1727942907492,3.38366,2364.3,2363.5,3.38468]
[1727942907693,3.38376,2364.3,2363.6,4.21679]
[1727942907976,6.38381,2364.2,2363.6,4.21679]
[1727942908336,6.38381,2364.2,2363.6,0.8322]
[1727942908541,3.3842,2364.0,2363.6,0.8322]
[1727942908734,3.38432,2363.9,2363.4,3.38488]
[1727942909036,6.3839,2364.2,2363.3,0.7646]
[1727942909241,3.38411,2364.0,2363.5,3.38481]
[1727942909678,3.38427,2363.9,2363.3,4.14961]
[1727942909983,3.38411,2364.0,2363.4,3.38491]
[1727942910138,3.38384,2364.2,2363.5,3.38477]
[1727942910334,6.76776,2364.2,2363.7,3.38444]
[1727942910592,3.38396,2364.1,2363.6,3.38462]
[1727942910748,3.38396,2364.1,2363.5,3.38468]
[1727942910951,3.38416,2364.0,2363.5,3.8411041]
[1727942911181,3.38416,2364.0,2363.5,3.38468]
[1727942911475,3.38416,2364.0,2363.3,4.564621]
[1727942911476,3.38424,2363.9,2363.3,4.564521]
[1727942911779,3.38416,2364.0,2363.4,3.38487]
[1727942912080,6.7678,2364.2,2363.6,3.38459]
[1727942912383,3.38396,2364.1,2363.5,3.38473]
[1727942912975,3.38396,2364.1,2363.5,3.3847]
[1727942913184,3.38396,2364.1,2363.5,7.64384001]
[1727942913393,3.38396,2364.1,2363.6,3.38465]
[1727942913542,3.38389,2364.2,2363.8,0.7943]
[1727942913991,3.94522499,2365.3,2363.8,0.7943]
[1727942914142,3.38332,2364.6,2364.0,3.38395]
[1727942914466,6.76612,2364.8,2364.1,3.38385]
[1727942914651,3.38315,2364.7,2364.2,3.38378]
[1727942914853,6.76612,2364.8,2364.2,3.38378]
[1727942915039,3.38339,2364.5,2364.1,0.338395]
[1727942915241,3.38311,2364.7,2363.8,0.7943]
[1727942915473,3.38313,2364.7,2364.2,3.3838]
[1727942915689,3.38284,2364.9,2363.9,4.26674578]
[1727942915839,3.38295,2364.8,2364.3,3.38366]
[1727942916042,3.38284,2364.9,2364.4,4.21123]
[1727942916249,3.38284,2364.9,2364.4,1.587289]
[1727942916448,3.38347,2364.5,2364.1,0.8278]
[1727942916651,3.38304,2364.8,2364.2,3.38371]
[1727942916980,3.38304,2364.8,2364.2,6.76743]
[1727942917287,3.38304,2364.8,2364.3,4.143153]
[1727942917778,6.76607,2364.8,2364.3,0.759523]
[1727942917938,3.38312,2364.7,2364.3,0.759523]
[1727942918144,3.38338,2364.5,2364.1,0.8278]
[1727942918355,3.38338,2364.5,2363.9,0.8083]
[1727942918596,3.38367,2364.3,2363.9,0.8083]
[1727942919582,3.38403,2364.1,2363.9,0.8083]
[1727942919787,3.38403,2364.1,2363.7,0.8083]
[1727942920004,3.0,2364.8,2363.7,0.8083]
[1727942920204,3.38444,2363.8,2363.4,0.7703]
[1727942920497,3.38444,2363.8,2363.3,3.38509]
[1727942920498,3.3842,2364.0,2363.3,3.385]
[1727942920795,3.38411,2364.0,2363.6,0.7703]
[1727942921002,6.38391,2364.2,2363.7,3.38452]
[1727942921365,6.38391,2364.2,2363.6,1.2196479]
[1727942921366,3.38404,2364.1,2363.6,1.2196479]
[1727942921561,3.38404,2364.1,2363.6,4.6042879]
[1727942921758,3.38404,2364.1,2363.7,0.79889579]
[1727942921988,6.38389,2364.2,2363.7,4.18336579]
[1727942922309,3.38326,2364.6,2364.0,3.38396]
[1727942922310,3.38332,2364.6,2364.0,3.38396]
[1727942922612,6.86481619,2365.9,2364.2,0.7662]
[1727942922759,3.38277,2365.0,2364.3,3.38356]
[1727942922967,3.38288,2364.9,2364.3,3.798536]
[1727942923459,3.38254,2365.1,2364.3,3.798536]
[1727942923460,3.38261,2365.1,2364.3,3.798536]
[1727942923663,3.38261,2365.1,2364.6,3.38321]
[1727942924011,3.38261,2365.1,2364.7,0.8213]
[1727942924361,3.38233,2365.3,2364.7,0.8213]
[1727942924670,3.86117921,2365.9,2364.7,0.8213]
[1727942924671,6.76552,2365.0,2364.7,0.8213]
[1727942925227,6.76552,2365.0,2364.4,0.8213]
[1727942925228,3.38294,2364.8,2364.4,0.8213]
[1727942925368,6.76601,2364.8,2364.4,1.241794]
[1727942925870,3.38294,2364.8,2364.4,0.8213]
[1727942926105,3.38337,2364.6,2364.4,0.8213]
[1727942926677,6.76612,2364.8,2364.4,0.8213]
[1727942927184,3.38313,2364.7,2364.4,0.8213]
[1727942927516,3.38328,2364.6,2364.4,0.8213]
[1727942927666,3.38313,2364.7,2364.4,0.8213]
[1727942928414,3.38326,2364.6,2364.4,0.8213]
[1727942928709,6.76584,2364.9,2364.4,0.8213]
[1727942929010,6.7658,2364.9,2364.4,0.8213]
[1727942929210,6.7658,2364.9,2364.4,1.241787]
[1727942929510,3.38258,2365.1,2364.5,3.38326]
[1727942929977,3.38258,2365.1,2364.4,0.8213]
[1727942930178,3.38266,2365.0,2364.5,3.38337]
[1727942930372,3.38258,2365.1,2364.5,0.758819]
[1727942930573,3.38287,2364.9,2364.5,0.758819]
[1727942930912,3.38268,2365.0,2364.4,0.8213]
[1727942931064,3.38268,2365.0,2363.6,6.85010578]
[1727942931065,3.0,2365.0,2363.8,4.18495]
[1727942931269,3.38378,2364.3,2363.8,5.28397216]
[1727942931512,3.38393,2364.2,2363.8,5.28397216]
[1727942931735,3.38398,2364.1,2363.8,0.8006]
[1727942932214,3.0,2364.3,2363.5,0.8078]
[1727942932428,3.0,2364.1,2363.5,0.8078]
[1727942932582,3.38445,2363.8,2363.5,0.8078]
[1727942932780,3.38452,2363.7,2363.5,0.8078]
[1727942933108,3.38466,2363.6,2363.5,0.8078]
[1727942933314,3.38419,2364.0,2363.5,0.8078]
[1727942933485,3.0,2364.1,2363.6,3.38465]
[1727942933828,6.38398,2364.1,2363.6,3.803895]
[1727942933980,3.38393,2364.2,2363.6,0.419245]
[1727942934187,3.3841,2364.0,2363.6,0.419245]
[1727942935331,3.3839,2364.2,2363.6,3.803835]
[1727942935485,3.3839,2364.2,2363.7,0.4611845]
[1727942935820,3.0,2364.4,2363.5,0.8078]
[1727942935821,3.38424,2363.9,2363.5,0.8078]
[1727942936027,3.38445,2363.8,2363.5,0.8078]
[1727942936581,3.38424,2363.9,2363.5,0.8078]
[1727942936786,6.7686,2363.9,2363.5,0.8078]
[1727942937007,3.38438,2363.8,2363.5,0.8078]
[1727942937621,3.38424,2363.9,2363.5,0.8078]
[1727942937990,3.38445,2363.8,2363.5,0.8078]
[1727942939697,3.38424,2363.9,2363.5,0.8078]
[1727942939937,3.38424,2363.9,2363.5,1.227087]
[1727942940320,3.38438,2363.8,2363.5,0.8078]
[1727942940642,3.38375,2364.3,2363.6,3.38455]
[1727942940798,3.0,2364.2,2363.8,0.8277]
[1727942941193,6.76753,2364.3,2363.8,4.971734]
[1727942941194,3.38375,2364.3,2363.8,4.971734]
[1727942941428,6.7675,2364.3,2363.8,4.971734]
[1727942941634,3.38381,2364.2,2363.8,1.587364]
[1727942941798,3.38375,2364.3,2363.8,1.587364]
[1727942941998,3.38375,2364.3,2363.9,0.4971774]
[1727942942234,3.38389,2364.2,2363.9,0.4971774]
[1727942942453,3.38423,2363.9,2363.8,0.8277]
[1727942942897,3.38411,2364.0,2363.8,0.8277]
[1727942943304,6.76804,2364.1,2363.8,0.8277]
[1727942943505,3.384,2364.1,2363.8,0.8277]
[1727942943748,3.38423,2363.9,2363.5,0.8073]
[1727942943910,3.38423,2363.9,2363.6,0.757703]
[1727942944804,6.76809,2364.1,2363.6,0.757703]
[1727942945001,3.38414,2364.0,2363.6,0.757703]
[1727942945406,3.38433,2363.9,2363.6,0.757703]
[1727942945813,3.38414,2364.0,2363.6,0.757703]
[1727942946306,3.38424,2363.9,2363.6,0.757703]
[1727942947231,3.38424,2363.9,2363.5,0.8073]
[1727942947232,3.38449,2363.8,2363.5,0.8073]
[1727942947546,3.85337041,2364.4,2363.0,6.85086578]
[1727942947547,3.38495,2363.4,2363.1,0.8274]
[1727942947918,3.38495,2363.4,2362.4,4.6923707]
[1727942947919,3.38524,2363.2,2362.7,0.8274]
[1727942948243,3.38554,2363.0,2362.7,0.8274]
[1727942948411,3.38581,2362.8,2362.4,0.8158]
[1727942948744,0.85337041,2363.5,2362.5,3.38615]
[1727942948745,3.38527,2363.2,2362.5,3.38615]
[1727942948936,3.38576,2362.9,2362.5,0.84981093]
[1727942949139,3.38576,2362.9,2362.4,0.8158]
[1727942949659,3.38575,2362.9,2362.4,0.8158]
[1727942949952,3.38566,2363.0,2362.4,0.8158]
[1727942950306,3.38566,2363.0,2362.4,1.2479906]
[1727942950552,3.38566,2363.0,2362.4,4.6342806]
[1727942950756,3.3856,2363.0,2362.4,4.6342806]
[1727942950925,3.38568,2362.9,2362.4,4.6342806]
[1727942951327,3.3856,2363.0,2362.4,0.8158]
[1727942951328,6.77123,2363.0,2362.4,0.8158]
[1727942951635,3.38531,2363.2,2362.4,4.20217]
[1727942951838,3.38569,2362.9,2362.4,4.20217]
[1727942952067,3.38553,2363.0,2362.4,8.3593136]
[1727942952551,3.38602,2362.7,2362.4,0.8158]
[1727942952749,3.38618,2362.6,2362.2,0.119686]
[1727942953256,6.38599,2362.7,2362.2,3.9333696]
[1727942953559,6.38599,2362.7,2362.2,0.5467796]
[1727942953707,6.38599,2362.7,2362.2,3.9334296]
[1727942954714,3.38613,2362.6,2362.2,0.5467796]
[1727942954921,6.38599,2362.7,2362.2,0.5467796]
[1727942955123,6.38599,2362.7,2362.2,3.9334496]
[1727942955124,9.77203,2362.7,2362.2,3.9334496]
[1727942955356,6.38599,2362.7,2362.2,3.9334496]
[1727942956258,9.77201,2362.7,2362.2,3.9334496]
[1727942956440,9.77204,2362.7,2362.2,3.9334496]
[1727942956627,3.38611,2362.6,2362.2,0.5467796]
[1727942957012,3.38624,2362.5,2362.2,0.119686]
[1727942957220,3.38639,2362.4,2362.2,0.119686]
[1727942957613,3.38624,2362.5,2362.2,0.119686]
[1727942957814,6.77256,2362.5,2362.2,0.119686]
[1727942958014,3.38624,2362.5,2362.2,0.119686]
[1727942958260,6.77156,2362.9,2362.3,3.38645]
[1727942958559,3.38577,2362.9,2362.4,3.7369736]
[1727942958953,3.38574,2362.9,2362.4,3.7369736]
[1727942959183,3.38515,2363.3,2362.6,0.8189]
[1727942959390,3.38562,2363.0,2362.6,0.8189]
[1727942959813,3.38534,2363.2,2362.6,0.8189]
[1727942960004,3.38534,2363.2,2362.6,4.20492]
[1727942960156,3.38475,2363.6,2363.0,0.8189]
[1727942960360,5.55093807,2363.7,2363.2,3.38522]
[1727942960605,3.38476,2363.6,2363.0,4.20435]
[1727942960903,6.77036,2363.3,2362.1,0.7571]
[1727942961061,3.38653,2362.3,2362.1,0.7571]
[1727942961401,3.38653,2362.3,2361.7,0.8225]
[1727942961608,6.85197578,2362.3,2361.7,0.8225]
[1727942961760,6.93653,2362.3,2361.1,0.00080423]
[1727942961957,10.40197578,2362.3,2361.3,0.791]
[1727942962983,10.40197578,2362.3,2361.1,0.00080423]
[1727942963185,6.38653,2362.3,2361.5,3.38765]
[1727942963510,6.38653,2362.3,2361.8,0.8049]
[1727942963720,6.38653,2362.3,2361.2,3.38807]
[1727942963925,10.40197578,2362.3,2361.4,0.8049]
[1727942964136,10.40197578,2362.3,2361.1,0.00080423]
[1727942964825,3.3881,2361.2,2361.1,0.00080423]
[1727942964990,11.65354578,2361.2,2361.1,0.00080423]
[1727942967536,3.3881,2361.2,2361.1,0.00080423]
[1727942967710,10.40354578,2361.2,2361.1,0.00080423]
[1727942968220,6.3881,2361.2,2361.1,0.00080423]
[1727942968584,3.3881,2361.2,2361.1,0.00080423]
[1727942969124,3.38784,2361.4,2361.1,0.00080423]
[1727942969327,3.46544578,2361.8,2361.1,0.00080423]
[1727942969328,3.3881,2361.2,2361.1,0.00080423]
[1727942970212,3.38796,2361.3,2361.1,0.00080423]
[1727942970407,3.38776,2361.5,2361.1,0.00080423]
[1727942970608,3.38793,2361.4,2361.2,0.7567]
[1727942971202,7.39,2361.9,2361.2,0.7567]
[1727942971399,3.38749,2361.7,2361.2,0.7567]
[1727942971600,6.77439,2361.9,2361.2,0.7567]
[1727942971856,7.39,2362.2,2361.4,3.38771]
[1727942971857,3.38688,2362.1,2361.4,3.38771]
[1727942972131,3.38739,2361.7,2361.2,1.17126342]
[1727942972340,3.38739,2361.7,2361.2,4.14479]
[1727942972510,3.38746,2361.7,2361.2,0.7567]
[1727942972722,3.38765,2361.6,2361.2,0.7567]
[1727942972941,3.38718,2361.9,2361.3,3.38794]
[1727942973236,3.387,2362.0,2361.5,3.38765]
[1727942973420,3.38687,2362.1,2361.5,3.38765]
[1727942973738,3.3872,2361.9,2361.4,0.7645]
[1727942974038,6.7744,2361.9,2361.4,0.7645]
[1727942974208,3.38686,2362.1,2361.4,1.22119844]
[1727942974408,3.38686,2362.1,2361.5,3.38765]
[1727942974797,3.38686,2362.1,2361.5,6.77523]
[1727942975001,3.38686,2362.1,2361.6,0.79964284]
[1727942975641,6.77379,2362.1,2361.6,0.79964284]
[1727942975798,3.38686,2362.1,2361.4,0.7645]
[1727942976348,3.0,2362.2,2361.6,3.38745]
[1727942976543,6.38668,2362.2,2361.6,3.38745]
[1727942976833,3.38726,2361.8,2361.4,0.7645]
[1727942977335,3.38739,2361.7,2361.4,0.7645]
[1727942977537,3.38714,2361.9,2361.4,0.7645]
[1727942977750,3.38687,2362.1,2361.5,3.38758]
[1727942977751,3.0,2362.0,2361.5,3.38758]
[1727942978635,3.0,2362.0,2361.4,4.15231]
[1727942978821,6.38696,2362.0,2361.4,7.54012]
[1727942979027,3.0,2362.0,2361.5,3.38757]
[1727942979332,3.38661,2362.3,2361.7,0.7795]
[1727942979739,3.38682,2362.1,2361.7,0.7795]
[1727942980261,3.38668,2362.2,2361.7,0.7795]
[1727942980556,3.38684,2362.1,2361.7,0.7795]
[1727942981225,6.9381,2361.2,2361.1,0.00080423]
[1727942981413,7.57377828,2361.2,2361.1,0.00080423]
[1727942981822,6.3881,2361.2,2361.1,0.00080423]
[1727942983163,6.9381,2361.2,2361.1,0.00080423]
[1727942984822,6.3881,2361.2,2361.1,0.00080423]
[1727942986926,6.9381,2361.2,2361.1,0.00080423]
[1727942988836,6.9357,2361.2,2361.1,0.00080423]
[1727942989142,6.9317,2361.2,2361.1,0.00080423]
[1727942989342,6.9309,2361.2,2361.1,0.00080423]
[1727942989572,6.9301,2361.2,2361.1,0.00080423]
[1727942989772,6.9277,2361.2,2361.1,0.00080423]
[1727942989971,6.9237,2361.2,2361.1,0.00080423]
[1727942990360,9.4681,2361.2,2361.1,0.00080423]
[1727942990728,9.4617,2361.2,2361.1,0.00080423]
[1727942990985,29.0217,2361.2,2361.1,0.00080423]
[1727942991134,10.89951276,2360.4,2360.3,1.06138603]
[1727942991470,10.89951276,2360.4,2359.8,0.119686]
[1727942991471,6.93997,2359.9,2359.8,0.119686]
[1727942991680,6.93357,2359.9,2359.8,0.119686]
[1727942991839,60.86049788,2359.9,2359.8,0.119686]
[1727942992170,38.97519588,2359.9,2359.8,0.119686]
[1727942992333,21.57478588,2359.9,2359.8,0.069686]
[1727942992533,21.56998588,2359.9,2359.8,0.069686]
[1727942993070,21.56838588,2359.9,2359.8,0.069686]
[1727942993280,45.58738588,2359.9,2359.8,0.069686]
[1727942993439,45.58738588,2359.9,2358.4,0.021201]
[1727942993440,16.19441588,2359.9,2358.4,0.021201]
[1727942993637,3.39159,2358.8,2358.4,0.021201]
[1727942994042,6.39198,2358.5,2358.4,0.021201]
[1727942994782,6.94198,2358.5,2358.4,0.021201]
[1727942994938,6.39198,2358.5,2358.4,0.021201]
[1727942995278,6.94198,2358.5,2358.4,0.021201]
[1727942996191,6.39198,2358.5,2358.4,0.021201]
[1727942996491,6.94198,2358.5,2358.4,0.021201]
[1727942996785,6.94313,2357.7,2357.5,5.97882231]
[1727942996938,6.39313,2357.7,2357.5,5.97882231]
[1727942999282,3.39313,2357.7,2357.5,5.97882231]
[1727943000295,3.9707349,2358.4,2357.5,5.97882231]
[1727943000296,3.39194,2358.6,2357.9,3.39283]
[1727943000578,3.39288,2357.9,2357.7,0.7787]
[1727943000783,3.39266,2358.1,2357.7,0.7787]
[1727943000939,3.9707349,2358.8,2357.7,0.7787]
[1727943000940,3.3928,2358.0,2357.7,0.7787]
[1727943001136,3.39144,2358.9,2357.5,5.97882231]
[1727943001137,3.39299,2357.8,2357.5,5.97882231]
[1727943001586,3.9707349,2358.4,2357.5,5.97882231]
[1727943001587,3.39281,2358.0,2357.5,5.97882231]
[1727943001846,3.393,2357.8,2357.5,5.97882231]
[1727943002358,3.393,2357.8,2357.6,0.62316083]
[1727943002559,3.39276,2358.0,2357.6,0.62316083]
[1727943003093,3.39313,2357.7,2357.6,0.0121]
[1727943003393,3.39286,2357.9,2357.6,0.0121]
[1727943003750,3.39263,2358.1,2357.7,0.7604]
[1727943003970,3.39281,2358.0,2357.7,0.7604]
[1727943004473,7.3617549,2359.2,2357.8,0.7511]
[1727943004673,3.3915,2358.9,2358.4,0.7511]
[1727943004920,3.3915,2358.9,2358.5,0.414335]
[1727943005075,3.39118,2359.1,2358.4,0.7511]
[1727943005272,3.39091,2359.3,2358.6,3.39183]
[1727943005483,6.78185,2359.3,2358.7,0.8303]
[1727943005672,3.39091,2359.3,2358.7,0.8303]
[1727943005904,3.39091,2359.3,2358.7,4.983307]
[1727943006102,3.39079,2359.4,2358.7,7.61351]
[1727943006310,3.39059,2359.5,2358.7,7.61351]
[1727943006311,3.39059,2359.5,2358.7,4.22198]
[1727943006506,3.39059,2359.5,2358.8,0.422198]
[1727943006507,3.39071,2359.4,2358.8,0.422198]
[1727943006792,3.39059,2359.5,2358.9,3.39138]
[1727943007012,3.39034,2359.7,2359.0,0.8175]
[1727943007211,3.39034,2359.7,2359.1,3.39107]
[1727943007507,3.39003,2359.9,2359.3,3.39083]
[1727943007743,3.38976,2360.1,2359.5,0.8103]
[1727943007914,3.38948,2360.3,2359.5,0.8103]
[1727943008068,3.38948,2360.3,2359.7,3.39016]
[1727943008272,3.38948,2360.3,2359.8,3.729126]
[1727943008467,3.38948,2360.3,2359.9,0.7584]
[1727943008716,3.38869,2360.8,2359.2,3.39094]
[1727943008717,3.39017,2359.8,2359.2,3.39089]
[1727943009120,3.39026,2359.7,2359.1,0.7584]
[1727943009276,3.39017,2359.8,2359.2,0.45309378]
[1727943009675,20.09801455,2362.0,2359.1,0.7584]
[1727943009676,3.38985,2360.0,2359.3,3.39081]
[1727943009929,3.38984,2360.0,2359.4,0.7619]
[1727943010122,9.77922,2360.2,2359.4,0.7619]
[1727943010425,3.38958,2360.2,2359.5,6.78089]
[1727943010608,3.39005,2359.9,2359.5,0.754279]
[1727943010792,3.38929,2360.4,2359.4,0.7619]
[1727943010793,3.39034,2359.7,2359.4,0.7619]
[1727943010978,3.39014,2359.8,2359.4,0.7619]
[1727943011420,3.39054,2359.5,2359.4,0.7619]
[1727943011638,3.39042,2359.6,2359.4,0.7619]
[1727943011998,3.39088,2359.3,2358.8,0.8156]
[1727943012334,3.39054,2359.5,2358.9,0.420723]
[1727943012751,3.39054,2359.5,2358.9,3.39131]
[1727943013033,3.39054,2359.5,2358.8,4.20706]
[1727943013034,3.3907,2359.4,2358.8,4.20706]
[1727943013540,3.39054,2359.5,2359.0,0.8028]
[1727943013695,3.39054,2359.5,2359.0,4.19398]
[1727943014080,3.39054,2359.5,2358.1,6.39252]
[1727943014081,3.39142,2358.9,2358.7,0.7859]
[1727943014233,3.39155,2358.8,2358.7,0.7859]
[1727943014400,3.39133,2359.0,2358.4,3.39211]
[1727943014738,3.39171,2358.7,2358.2,0.7859]
[1727943014956,3.39171,2358.7,2358.2,3.3924]
[1727943015238,3.39133,2359.0,2358.3,0.7769]
[1727943015539,3.39128,2359.0,2358.4,3.808938]
[1727943015720,3.39128,2359.0,2358.4,0.416918]
[1727943015896,3.39128,2359.0,2358.4,3.809028]
[1727943016093,3.39151,2358.9,2358.5,0.4585928]
[1727943016298,3.39128,2359.0,2358.4,0.416918]
[1727943016533,3.39166,2358.8,2358.4,0.416918]
[1727943016737,3.39134,2359.0,2358.4,3.808958]
[1727943016918,3.39181,2358.7,2357.9,4.16702]
[1727943017121,3.39151,2358.9,2358.0,0.416702]
[1727943017327,6.39119,2359.1,2358.3,4.16808]
[1727943017548,6.39119,2359.1,2358.5,3.3919]
[1727943017838,6.39119,2359.1,2358.3,4.16808]
[1727943017839,3.39181,2358.7,2358.3,0.7759]
[1727943018046,3.39154,2358.9,2358.3,0.7759]
[1727943018047,3.39154,2358.9,2358.3,1.192743]
[1727943018194,3.39154,2358.9,2358.4,3.39212]
[1727943018395,3.3912,2359.1,2357.8,3.9707349]
[1727943018396,3.39228,2358.3,2357.8,0.8207]
[1727943018611,3.39284,2357.9,2357.8,0.8207]
[1727943018946,6.78446,2358.4,2357.8,0.8207]
[1727943019181,6.78446,2358.4,2357.8,1.243292]
[1727943019182,3.39242,2358.2,2357.8,1.243292]
[1727943019394,3.39222,2358.4,2357.8,4.636262]
[1727943019841,3.39222,2358.4,2357.8,4.636202]
[1727943020042,3.39222,2358.4,2357.9,3.8563702]
[1727943020275,11.3607349,2359.2,2358.2,3.3924]
[1727943020276,3.0,2358.7,2358.2,3.3924]
[1727943020577,3.0,2358.7,2357.9,0.4636202]
[1727943020578,3.39116,2359.1,2358.3,0.8232]
[1727943020786,3.39146,2358.9,2358.3,0.8232]
[1727943020992,3.39213,2358.4,2358.3,0.8232]
[1727943021159,3.39244,2358.2,2357.7,0.8232]
[1727943021362,3.39116,2359.1,2357.9,3.3928]
[1727943021363,3.39203,2358.5,2357.9,3.3928]
[1727943021678,3.39203,2358.5,2357.9,4.24754902]
[1727943022260,3.39214,2358.4,2357.9,4.24754902]
[1727943022469,3.39191,2358.6,2357.9,4.24749902]
[1727943022671,6.78384,2358.6,2358.1,0.7544]
[1727943022903,9.39,2359.7,2358.1,0.7544]
[1727943022904,0.55,2359.4,2358.1,0.7544]
[1727943023056,3.39137,2359.0,2358.0,0.8056]
[1727943023262,3.39137,2359.0,2357.8,3.9707349]
[1727943023263,3.39135,2359.0,2358.5,0.8056]
[1727943023569,3.39076,2359.4,2358.5,0.8056]
[1727943023570,3.39075,2359.4,2358.5,0.8056]
[1727943023756,16.0571566,2360.2,2358.0,3.39267]
[1727943023757,3.9707349,2360.4,2359.0,0.7588]
[1727943023946,3.39058,2359.5,2359.0,0.7588]
[1727943024151,3.39048,2359.6,2359.0,0.7588]
[1727943024354,3.39056,2359.5,2359.0,4.14993]
[1727943024666,3.39056,2359.5,2358.1,6.731717]
[1727943024667,3.39184,2358.6,2358.5,0.7871]
[1727943025083,3.39184,2358.6,2358.2,0.7563]
[1727943025264,3.39166,2358.8,2358.2,4.14858]
[1727943025482,3.39169,2358.8,2358.2,0.7563]
[1727943025801,3.39169,2358.8,2358.2,4.14863]
[1727943026002,3.39169,2358.8,2358.3,3.39224]
[1727943026157,3.39169,2358.8,2358.2,4.14862]
[1727943026362,3.39163,2358.8,2358.3,0.414862]
[1727943026551,3.39178,2358.7,2358.2,0.7563]
[1727943026793,3.39099,2359.2,2358.3,0.8025]
[1727943026794,3.39127,2359.0,2358.3,0.8025]
[1727943027036,3.0,2359.2,2358.3,1.221978]
[1727943027233,3.39079,2359.4,2358.9,0.8208]
[1727943027440,6.78159,2359.4,2358.9,0.8208]